Cogmind - Beta 15 @@@ ROGUE MODE // 2025.05.22 @ 18:20:18 Player: celerysam Result: Destroyed by 9M-4KG(R) with Subdweller Beam Cannon Performance ------------- Evolutions (0) 0 Regions Visited (3) 600 Robots Destroyed (15) 75 Value Destroyed (327) 327 Prototype IDs (0) 0 Alien Tech Used (0) 0 Bonus (0) 0 TOTAL SCORE: 1002 Bonus ------- None Cogmind --------- Core Integrity 0/250 Matter 300/300 Energy 100/100 System Corruption 0% Temperature Cool (9) Movement Rolling (185) Ox7 Location -10/Subcaves Parts ------- > --- POWER (1) -------- (None) > --- PROPULSION (2) --- Wheel > --- UTILITY (2) ------ Huge Storage Unit Targeting Computer > --- WEAPON (2) ------- (None) > --- INVENTORY (25) --- Light Treads Light Treads Compact Wheel Compact Wheel Small Storage Unit Large Storage Unit Light Armor Plating Light Armor Plating Light Armor Plating Hardened Light Armor Plating EM Shotgun Beam Cannon Assault Rifle Assault Rifle Assault Rifle Grenade Launcher Datajack Mining Laser Peak State ------------ > --- POWER ------------ Ion Engine > --- PROPULSION ------- Wheel Compact Wheel > --- UTILITY ---------- Huge Storage Unit Targeting Computer > --- WEAPON ----------- Small Laser Assault Rifle > --- INVENTORY -------- Light Treads Light Treads Compact Wheel Compact Wheel Small Storage Unit Large Storage Unit Light Armor Plating Light Armor Plating Light Armor Plating Hardened Light Armor Plating EM Shotgun Beam Cannon Assault Rifle Assault Rifle Assault Rifle Grenade Launcher Datajack Mining Laser [Rating: 9] Favorites ----------- Power Ion Engine Engine Ion Engine Propulsion Compact Wheel Leg Aluminum Leg Wheel Compact Wheel Utility Targeting Computer Storage Huge Storage Unit Processor Targeting Computer Weapon Small Laser Energy Gun Small Laser Ballistic Gun Assault Rifle Build | -11 -10 -10 -10 ------- Run | Yrd Mat Min Sub Slots Evolved . | . . . . Power . | . . . . Propulsion . | . . . . Utility . | . . . . Weapon . | . . . . Parts Attached 16 | 6 10 . . Power 3 | 1 2 . . Engine 3 | 1 2 . . Core . | . . . . Reactor . | . . . . Propulsion 5 | 2 3 . . Treads . | . . . . Leg 2 | 2 . . . Wheel 3 | . 3 . . Hover . | . . . . Flight . | . . . . Utility 4 | 1 3 . . Device . | . . . . Storage 3 | 1 2 . . Processor 1 | . 1 . . Hackware . | . . . . Protection . | . . . . Artifact . | . . . . Weapon 4 | 2 2 . . Energy Gun 2 | 1 1 . . Energy Cannon . | . . . . Ballistic Gun 2 | 1 1 . . Ballistic Cannon . | . . . . Launcher . | . . . . Special Weapon . | . . . . Impact Weapon . | . . . . Slashing Weapon . | . . . . Piercing Weapon . | . . . . Special Melee Weapon . | . . . . Unidentified Prototypes . | . . . . Parts Lost 8 | . 4 . 4 Power 3 | . 2 . 1 Propulsion 2 | . 1 . 1 Utility . | . . . . Weapon 3 | . 1 . 2 Highest Loss Streak 4 | . 1 . 4 To Critical Strikes . | . . . . Average Backups 14 | 4 12 18 18 Power . | . . . . Propulsion 3 | 3 3 4 4 Utility 4 | . 3 6 6 Weapon 5 | . 5 7 7 Tool/Special . | . . . . Unused Backups 16 | . . . 16 Power . | . . . . Propulsion 4 | . . . 4 Utility 4 | . . . 4 Weapon 7 | . . . 7 Tool/Special 1 | . . . 1 Average Slot Usage (%) 95 | . 93 100 100 Engine 13 | . 13 14 14 Leg 3 | . 5 . . Wheel 21 | . 18 28 28 Storage 14 | . 14 14 14 Processor 12 | . 12 14 14 Energy Gun 13 | . 13 14 14 Ballistic Gun 14 | . 14 14 14 Peak Build Rating 9 | 6 9 9 9 Average Rating 7 | 3 7 9 8 On Entrance 6 | . 6 9 9 Naked Turns . | . . . . Heaviest Build 88 | 10 88 88 88 Greatest Support 26 | 20 26 26 26 Greatest Overweight (x) 3 | . 3 3 3 Average Overweight (x) 1 | . 1 3 3 Largest Inventory Capacity 25 | 8 25 25 25 Average Capacity 18 | 6 15 25 25 Most Carried 18 | 6 18 18 18 Average Carried 14 | 4 12 18 18 Final Capacity 25 | 8 25 25 25 Final Carried 18 | 6 18 18 18 Class Distribution -------------------- 100% | Mutant Dominant Class ---------------- Mutant | -10/Materials Mutant | -10/Mines Mutant | -10/Subcaves Resources | -11 -10 -10 -10 ----------- Run | Yrd Mat Min Sub Matter Collected 494 | 195 299 . . Remotely . | . . . . Salvage Created 464 | . 464 . . Parts 21 | . 21 . . Haulers Intercepted 1 | . 1 . . Recyclers Shooed 1 | . 1 . . Parts Field Recycled . | . . . . Retrieved Matter . | . . . . Parts Self-Destructed . | . . . . Prevented . | . . . . Kills | -11 -10 -10 -10 ------- Run | Yrd Mat Min Sub Combat Hostiles Destroyed 13 | . 13 . . Guns 13 | . 13 . . Classes Destroyed 4 | . 4 . . Worker 1 | . 1 . . Hauler 1 | . 1 . . Swarmer 6 | . 6 . . Grunt 7 | . 7 . . Best Kill Streak 4 | . 4 . . Combat Bots Only 3 | . 3 . . Max Kills in Single Turn 2 | . 2 . . Gunslinging 1 | . 1 . . Exploded . | . . . . Melee . | . . . . Uniques/NPCs Destroyed . | . . . . Combat | -11 -10 -10 -10 -------- Run | Yrd Mat Min Sub Hostile Shots Fired 98 | . 91 . 7 Missed 24 | . 23 . 1 Hits 74 | . 68 . 6 Projectile 74 | . 68 . 6 Damage Taken 985 | . 824 . 161 Core 250 | . 222 . 28 Absorbed by Shields . | . . . . Core Remaining (%) 100 | 100 . . . Volleys Fired 61 | . 57 . 4 Largest 2 | . 2 . 2 Hottest 60 | . 60 . 60 Shots Fired 115 | . 107 . 8 Gun 115 | . 107 . 8 Cannon . | . . . . Launcher . | . . . . Special . | . . . . Kinetic 61 | . 57 . 4 Thermal 54 | . 50 . 4 Explosive . | . . . . Electromagnetic . | . . . . Robot Hit Streak 12 | . 12 . 3 Robot Miss Streak 4 | . 3 . 4 Penetration Max . | . . . . Secondary Targets 2 | . 2 . . Max Gunslinging Chain 1 | . 1 . . Shots Hit Robots 75 | . 72 . 3 Core Hits 26 | . 26 . . Critical Kills . | . . . . Critical Parts Destroyed . | . . . . Critical Strikes . | . . . . Melee Attacks . | . . . . Impact . | . . . . Slashing . | . . . . Piercing . | . . . . Sneak Attacks . | . . . . Combat Hostiles . | . . . . Follow-up Attacks . | . . . . Damage Inflicted 888 | . 853 . 35 Guns 888 | . 853 . 35 Cannons . | . . . . Explosions . | . . . . Melee . | . . . . Ramming . | . . . . Kinetic 482 | . 470 . 12 Thermal 406 | . 383 . 23 Explosive . | . . . . Electromagnetic . | . . . . Impact . | . . . . Slashing . | . . . . Piercing . | . . . . Highest Corruption . | . . . . Average Corruption . | . . . . Corruption Purged . | . . . . Corruption Blocked . | . . . . Overload Shots . | . . . . Overflow Damage . | . . . . Projectiles . | . . . . Explosions . | . . . . Melee . | . . . . Knockbacks . | . . . . Impact . | . . . . Kinetic . | . . . . Secondary . | . . . . Self-Inflicted Damage . | . . . . Shots . | . . . . Rammed . | . . . . Targets Rammed . | . . . . Kicked . | . . . . Crushed . | . . . . Highest Temperature 69 | . 69 . . Average Temperature 29 | . 29 . . Received Heat Transfer 252 | . 198 . 54 Siege Activations . | . . . . Martial Activations . | . . . . Shielding Activations . | . . . . Robots Disrupted . | . . . . Combat Hostiles . | . . . . Robots Corrupted . | . . . . Combat Hostiles . | . . . . Parts Fried . | . . . . Impact Corruptions . | . . . . Robots Melted . | . . . . Combat Hostiles . | . . . . Parts Melted 2 | . 2 . . Heat Transferred 925 | . 875 . 50 Parts Sabotaged . | . . . . Parts Stolen . | . . . . Parts Stripped . | . . . . Power Chain Reactions . | . . . . Alert | -11 -10 -10 -10 ------- Run | Yrd Mat Min Sub Maximum Alert Level . | . . . . Low Security (%) 100 | 100 100 100 . Level 1 . | . . . . Level 2 . | . . . . Level 3 . | . . . . Level 4 . | . . . . Level 5 . | . . . . High Security . | . . . . Max Security . | . . . . Peak Influence 84 | . 84 19 . Initial 19 | . . 19 . Average 12 | . 18 1 . Influence Increases 333 | . 333 . . Destroy 0b10 Robot/C 260 | . 260 . . Destroy 0b10 Robot/NC 10 | . 10 . . Destroy Leader 62 | . 62 . . Destroy Structure 1 | . 1 . . Influence Decreases 333 | . 283 50 . Entered New Map 31 | . . 31 . Time Decay 282 | . 263 19 . Lost Part 20 | . 20 . . Squads Dispatched 3 | . 3 . . Investigation 1 | . 1 . . Extermination . | . . . . Reinforcement 2 | . 2 . . Assault . | . . . . Garrison . | . . . . Intercept . | . . . . Searches Triggered . | . . . . Construction Impeded . | . . . . Haulers Reinforced . | . . . . Active Scanning Responses . | . . . . Cargo Convoy Interrupts . | . . . . Stealth | -11 -10 -10 -10 --------- Run | Yrd Mat Min Sub Distress Signals 1 | . 1 . . Communications Jammed . | . . . . Distress Signals . | . . . . Times Spotted 26 | . 25 . 1 Peak Tracking Total 5 | . 5 . 1 Tactical Retreats . | . . . . Traps | -11 -10 -10 -10 ------- Run | Yrd Mat Min Sub Traps Triggered 3 | . 3 . . Indirectly . | . . . . Trap Hack Attempts . | . . . . Triggered . | . . . . Disarmed . | . . . . Reprogrammed . | . . . . Reused . | . . . . Traps Extracted . | . . . . Installed 3 | . . 3 . Triggered . | . . . . Machines | -11 -10 -10 -10 ---------- Run | Yrd Mat Min Sub Machines Disabled . | . . . . Max in Single Turn . | . . . . Machines Repaired . | . . . . Machines Dismantled . | . . . . Machines Sabotaged . | . . . . Overloaded Fab Kills . | . . . . Hacking | -11 -10 -10 -10 --------- Run | Yrd Mat Min Sub Machines Accessed 1 | . 1 . . Terminals . | . . . . Fabricators . | . . . . Repair Stations . | . . . . Recycling Units 1 | . 1 . . Scanalyzers . | . . . . Garrison Access . | . . . . Total Hacks 1 | . 1 . . Successful 1 | . 1 . . Failed . | . . . . Catastrophic . | . . . . Database Lockouts . | . . . . Manual . | . . . . Terminals . | . . . . Fabricators . | . . . . Repair Stations . | . . . . Recycling Units 1 | . 1 . . Scanalyzers . | . . . . Garrison Access . | . . . . Terminal Hacks . | . . . . Fabricator Hacks . | . . . . Repair Station Hacks . | . . . . Recycling Unit Hacks 1 | . 1 . . Report Inventory 1 | . 1 . . Scanalyzer . | . . . . Garrison Access Hacks . | . . . . Unauthorized Hacks . | . . . . Terminals . | . . . . Fabricators . | . . . . Repair Stations . | . . . . Recycling Units . | . . . . Scanalyzers . | . . . . Garrison Access . | . . . . Data Cores Recovered . | . . . . Used . | . . . . Hacking Detections 1 | . 1 . . Full Trace Events . | . . . . Feedback Events . | . . . . Feedback Blocked . | . . . . Robot Schematics Acquired . | . . . . Robots Built . | . . . . Authchips . | . . . . Time . | . . . . Total Robot Build Rating . | . . . . Part Schematics Acquired . | . . . . Parts Built . | . . . . Authchips . | . . . . Time . | . . . . Total Part Build Rating . | . . . . Parts Repaired . | . . . . Time . | . . . . Parts Recycled . | . . . . Recycled Matter . | . . . . Retrieved Matter . | . . . . Retrieved Components . | . . . . Parts Scanalyzed . | . . . . Part Schematics Acquired . | . . . . Parts Damaged . | . . . . Bothacking | -11 -10 -10 -10 ------------ Run | Yrd Mat Min Sub Used RIF Installer . | . . . . Robots Hacked . | . . . . Non-combat . | . . . . Combat . | . . . . Robot Hacks Applied . | . . . . Relay Couplers Released . | . . . . Fabnet Peak Effective % . | . . . . Robots Rewired . | . . . . Allies Hacked . | . . . . Hacks Repelled . | . . . . Allies | -11 -10 -10 -10 -------- Run | Yrd Mat Min Sub Total Allies 2 | . . 2 . Largest Group 2 | . . 2 2 Highest-Rated Group 46 | . . 46 46 Highest-Rated Ally 31 | . . 31 31 Total Orders . | . . . . Ally Attacks 6 | . . . 6 Total Damage 86 | . . . 86 Kills . | . . . . Allies Corrupted . | . . . . Allies Melted . | . . . . Intel | -11 -10 -10 -10 ------- Run | Yrd Mat Min Sub Active Infowar (turns) . | . . . . Robot Analysis Total . | . . . . Derelict Logs Recovered 1 | . . 1 . Drone Launches . | . . . . Drone Recoveries . | . . . . Exploration | -11 -10 -10 -10 ------------- Run | Yrd Mat Min Sub Turns Passed 1847 | 64 1196 525 62 Spaces Moved 1173 | 51 708 377 37 Core 16 | 16 . . . Treads . | . . . . Legs 178 | 35 143 . . Wheels 979 | . 565 377 37 Hover . | . . . . Flight . | . . . . Fastest Speed 50 | 50 105 135 135 Average Speed 123 | 98 118 135 135 Slowest Speed 135 | 120 135 135 135 Overloaded Moves . | . . . . Propulsion Burnouts . | . . . . Robots Hopped . | . . . . Potential Cave-ins . | . . . . Cave-ins Triggered . | . . . . Exploration Rate (%) 39 | 3 86 66 4 Regions Visited 3 Branch Regions 2 Pre-discovered Areas 1 | . . 1 . Known Exits Taken . | . . . . Unknown Exits Taken 3 | 1 1 1 . Scrap Searched . | . . . . Spaces Dug . | . . . . Terrain Destroyed . | . . . . Melee . | . . . . Projectile . | . . . . AOE . | . . . . Terrain Rammed . | . . . . Walls Destroyed . | . . . . Machines Disabled . | . . . . Actions | -11 -10 -10 -10 --------- Run | Yrd Mat Min Sub Total 1456 | 62 960 393 41 Wait 177 | . 163 14 . Move 1170 | 50 707 376 37 Hop . | . . . . Pick Up 25 | 6 19 . . Fast Attach 7 | 6 1 . . Attach 5 | . 5 . . Detach . | . . . . Swap 4 | . 4 . . Drop 4 | . 4 . . Fire 61 | . 57 . 4 Melee . | . . . . Ram . | . . . . Kick . | . . . . Crush . | . . . . Escape Stasis . | . . . . Rewire . | . . . . Trap 3 | . . 3 . Miscellaneous . | . . . . Route ------- -11/Scrapyard -10/Materials (discovered 5 exits: *Mat x3 / [*Min x2]) -10/Mines (discovered 3 exits: *Mat x2 / [*Sub]) -10/Subcaves (discovered 1 exit: [*Mat]) History --------- Turn | Location | Event 4 | -11/Scrapyard | Discovered new exit (range 15) 65 | -11/Scrapyard | Entered Materials 285 | -10/Materials | Discovered new exit (range 6) 319 | -10/Materials | Build established: Mutant 550 | -10/Materials | Core integrity fell below 50% 557 | -10/Materials | Discovered new exit (range 15) 710 | -10/Materials | Discovered new exit (range 11) 740 | -10/Materials | Core integrity fell below 20% 767 | -10/Materials | Discovered new exit (range 10) 967 | -10/Materials | Discovered new exit (range 12) 1261 | -10/Materials | Entered Mines 1278 | -10/Mines | Identified exit to Materials 1349 | -10/Mines | Found a hidden stash of uninstalled traps 1570 | -10/Mines | Discovered exit to Materials (range 6) 1572 | -10/Mines | Learned location of Storage (-8) 1757 | -10/Mines | Discovered new exit (range 12) 1786 | -10/Mines | Entered Subcaves 1786 | -10/Subcaves | Accompanied by 2 allies 1787 | -10/Subcaves | Approached by a straggling Scientist 1791 | -10/Subcaves | Led the pair of lost Derelicts to an unsafe place 1813 | -10/Subcaves | Discovered new exit (range 15) 1848 | -10/Subcaves | Destroyed by 9M-4KG(R) with Subdweller Beam Cannon Last Messages --------------- GOAL=ESCAPE 01787_ X7-FST(c): "Thank the algorithms! I was beginning to lose hope I'd never make it past all the Subs lurking out here." 01790_ X7-FST(c): "Hey, let me tag along and I can get us both out of this nasty situation. At least I think I can... The group I got separated from was talking about a shortcut back to the UFD." 01791_ 3X-QCR(g): "This place looks worse than where we left..." 01796_ 3X-QCR(g): "Following you was a bad idea, I think." 01813_ EXIT=FOUND X7-FST(c): "I think it's somewhere southeast of here" 01846_ Sml. Laser destroyed. 01846_ Ion Engine destroyed. 01846_ Assault Rifle destroyed. 01846_ Com. Wheel destroyed. Map ----- +----------------------------------------------------+ | ?????????????????????????????????????????????????? | | ?????????????????????????????????????????????????? | | ?????????????????????????????????????????????????? | | ?????????????????????????????????????????????????? | | ?????????????????????????????????????????????????? | | ?????????????????????????????????????????????????? | | ?????????????????????????????????????????????????? | | ?????????????????????????????????????????????????? | | ?????????????????????????????????????????????????? | | ?????????????????????????????????????????????????? | | ?????????????????????????????????????????????????? | | ?????????????????????????????????????????????????? | | ?????????????????????????????????????????????????? | | ?????????????????????????????????????????????????? | | ?????????????????????????????????????????????????? | | ????????????????????????????????##???????????????? | | ??????????????????????????????? ;#???????????????? | | ???????????????????????????##?# ##??????????????? | | ??????????????????????##### ## % ##?????????????? | | ?????????????????????? % ####??????????? | | ??????????????????????? %% ??????????? | | ??????????????????????? ?????????? | | ???????????????????????# % #?????????? | | ???????????????????????# #?????????? | | ???????????????????????# R #?????????? | | ??????????????????????## @% z;;*%% %#??????????? | | ??????????????????????# ## #????????????? | | ??????????????????????#c < #??????????????????? | | ??????????????????????# ##??????????????????? | | ??????????????????????# %g ##???????????????????? | | ??????????????????????# % #????????????????????? | | ??????????????????????#% #????????????????????? | | ??????????????????????## %% #????????????????????? | | ???????????????????????##% #????????????????????? | | ????????????????????????# ##????????????????????? | | ???????????????????????## ##????????????????????? | | ???????????????????????# #????????????????????? | | ???????????????????????## ##????????????????????? | | ???????????????????????# %#?????????????????????? | | ??????????????####???#### #?????????????????????? | | ?????????????## #?### # #?????????????????????? | | ?????????????#% %#?# #?????????????????????? | | ?????????????# #?# # ##?????????????????????? | | ????????????## #?# #####??????????????????????? | | ??????????### ##?## #?????????????????????????? | | ?????????## ### #?????????????????????????? | | ?????????# ##?????????????????????????? | | ?????????## ## ##??????????????????????????? | | ?????????# #######???????????????????????????? | | ??????? ##?????????????????????????????????? | +----------------------------------------------------+ Best States ------------- Heat Dissipation 25 Energy Generation 10 Energy Capacity 250 Matter Stores 300 Matter Capacity 300 Sight Range 16 Terrain Scan Density 10 Evasion (%) 55 Targeting Accuracy 5 Item Schematics ----------------- None Robot Schematics ------------------ None Fabricated ------------ Nothing Repaired ---------- Nothing Alien Tech Used ----------------- None Achievements -------------- None Challenges ------------ None Game ------ Seed ProcessingChainSabre Manual? 0 Play Time 00:13:27 Cumulative 258.7 hours Start 2025.05.22 @ 18:00:01 End 2025.05.22 @ 18:20:18 Sessions 1 Manual Loads 0 Difficulty Rogue Special Mode None Game No. 388 Rogue 388 Adventurer 0 Explorer 0 Win Type - Total 1 Types 1/0/0/0/0/0/0/0/0/0 Lore% 63 Gallery% 62 Achievement% 43 Wizard Run 0 Options --------- Layout 1 ASCII 0 Keyboard 0 Movement Mouse Keybinds 0 Fullscreen 2 Font 24/Smallcaps Map View 50x35 Zoom Use 0% Tactical HUD 1 Map Filters NONE Filters NONE Steam 1 RUN: 84df2316-3b08-4e36-8c13-0fa0904fd8bd